{"text_format":"1","workbook":"xlsx","n_sheets":3,"sheets":["Служебная записка","Заявление на деньги","Настройки"],"not_rendered":{"charts":0,"images":0,"macros":1,"external_links":1,"defined_names":4,"comments":0,"pivot_tables":0},"unopened":[],"bounds":{"document_bytes":16777216,"sheet_cells":100000,"rows_first":2000,"rows_last":500,"rows_between":2000,"halvings":0,"cell_chars":16384,"cell_head_chars":4096},"cells_cut":0,"cells_raw":0,"read":"whole","date_system":"1900"}

{"sheet":"Служебная записка","index":0,"n_rows":40,"n_cols":51,"rows_kept":40,"cut":false,"hidden":false,"merged":[[22,14,24,46],[9,0,9,48],[11,0,11,20],[11,23,11,44],[12,23,12,44],[13,23,13,44],[14,23,14,44],[20,0,20,13],[22,0,22,13],[20,14,20,46],[35,27,35,31],[39,27,39,31],[31,27,31,31],[34,0,34,25],[30,0,30,25],[30,27,30,31],[34,27,34,31],[38,27,38,31],[26,0,26,11],[37,0,39,14],[38,16,38,25],[26,15,26,16],[26,13,26,14],[26,17,26,20],[34,39,34,42],[38,39,38,42],[15,23,15,44],[16,23,16,44],[17,23,17,44],[26,22,26,23],[26,24,26,25],[26,26,26,29],[26,36,26,38],[30,35,30,36],[30,37,30,38],[34,35,34,36],[38,35,38,36],[34,37,34,38],[38,37,38,38],[30,39,30,42]]}
[]
[null,null,1,null,null,null,null,null,null,null,null,null,null,null,null,null,null,null,null,null,null,null,null,null,null,null,null,null,null,"Директору филиала"]
[]
[]
[]
[]
[]
[]
[]
["Служебная записка"]
[]
["Прошу направить в командировку:",null,null,null,null,null,null,null,null,null,null,null,null,null,null,null,null,null,null,null,null,"1.",null,"Из",null,null,null,null,null,null,null,null,null,null,null,null,null,null,null,null,null,null,null,null,null,null,null,null,null,null,"˂--- заполнить"]
[null,null,null,null,null,null,null,null,null,null,null,null,null,null,null,null,null,null,null,null,null,{"$f":"AX13","v":"2."},null,"Ла",null,null,null,null,null,null,null,null,null,null,null,null,null,null,null,null,null,null,null,null,null,null,null,null,null,{"$f":"IF(X13=\"\",\"\",\"2.\")","v":"2."},"˂--- заполнить"]
[null,null,null,null,null,null,null,null,null,null,null,null,null,null,null,null,null,null,null,null,null,"3.",null,"Ор",null,null,null,null,null,null,null,null,null,null,null,null,null,null,null,null,null,null,null,null,null,null,null,null,null,{"$f":"IF(X14=\"\",\"\",\"3.\")","v":"3."},"˂--- заполнить еcли едет 3 человека"]
[null,null,null,null,null,null,null,null,null,null,null,null,null,null,null,null,null,null,null,null,null,"4.",null,"Пл",null,null,null,null,null,null,null,null,null,null,null,null,null,null,null,null,null,null,null,null,null,null,null,null,null,{"$f":"IF(X15=\"\",\"\",\"4.\")","v":"4."},"˂--- заполнить еcли едет 4 человека"]
[null,null,null,null,null,null,null,null,null,null,null,null,null,null,null,null,null,null,null,null,null,"5.",null,"Со",null,null,null,null,null,null,null,null,null,null,null,null,null,null,null,null,null,null,null,null,null,null,null,null,null,{"$f":"IF(X16=\"\",\"\",\"5.\")","v":"5."},"˂--- заполнить еcли едет 5 человека"]
[null,null,null,null,null,null,null,null,null,null,null,null,null,null,null,null,null,null,null,null,null,"6.",null,"Кр",null,null,null,null,null,null,null,null,null,null,null,null,null,null,null,null,null,null,null,null,null,null,null,null,null,{"$f":"IF(X17=\"\",\"\",\"6.\")","v":"6."},"˂--- заполнить еcли едет 6 человека"]
[null,null,null,null,null,null,null,null,null,null,null,null,null,null,null,null,null,null,null,null,null,"7.",null,"Ба",null,null,null,null,null,null,null,null,null,null,null,null,null,null,null,null,null,null,null,null,null,null,null,null,null,{"$f":"IF(X18=\"\",\"\",\"7.\")","v":"7."},"˂--- заполнить еcли едет 7 человека"]
[]
[]
["Место командировки:",null,null,null,null,null,null,null,null,null,null,null,null,null,"БЕСУХ",null,null,null,null,null,null,null,null,null,null,null,null,null,null,null,null,null,null,null,null,null,null,null,null,null,null,null,null,null,null,null,null,null,null,null,"˂--- заполнить"]
[]
["Цель командировки:",null,null,null,null,null,null,null,null,null,null,null,null,null,"Устранение дифектов"]
[null,null,null,null,null,null,null,null,null,null,null,null,null,null,null,null,null,null,null,null,null,null,null,null,null,null,null,null,null,null,null,null,null,null,null,null,null,null,null,null,null,null,null,null,null,null,null,null,null,null,"˂--- заполнить"]
[]
[]
["Срок командировки:",null,null,null,null,null,null,null,null,null,null,null,null,"26.",null,"05.",null,2019,null,null,null,"-","28.",null,"05.",null,2019,null,null,null,null,null,null,null,null,2,{"$f":"IF(AJ27=5,\"дней\",\"дня\")","v":"дня"},null,null,null,null,null,null,null,null,null,null,null,null,null,"˂--- заполнить Д.М.Г и кол.дней"]
[]
[]
[]
["Начальник службы ",null,null,null,null,null,null,null,null,null,null,null,null,null,null,null,null,null,null,null,null,null,null,null,null,null,null,"_______",null,null,null,null,null,null,null,"24.",null,"05.",null,2019,null,null,null,null,null,null,null,null,null,null,"˂--- заполнить"]
[null,null,null,null,null,null,null,null,null,null,null,null,null,null,null,null,null,null,null,null,null,null,null,null,null,null,null,"подпись"]
[]
[]
["Начальник СМИТ             ",null,null,null,null,null,null,null,null,null,null,null,null,null,null,null,null,null,null,null,null,null,null,null,null,null,null,"_______",null,null,null,null,null,null,null,{"$f":"AJ31","v":"24."},null,{"$f":"AL31","v":"05."},null,{"$f":"AN31","v":2019}]
[null,null,null,null,null,null,null,null,null,null,null,null,null,null,null,null,null,null,null,null,null,null,null,null,null,null,null,"подпись"]
[]
["Старший, ответственный бригады "]
[null,null,null,null,null,null,null,null,null,null,null,null,null,null,null,null,"Со С.В",null,null,null,null,null,null,null,null,null,"  ________","_______",null,null,null,null,null,null,null,{"$f":"AJ31","v":"24."},null,{"$f":"AL35","v":"05."},null,{"$f":"AN31","v":2019},null,null,null,null,null,null,null,null,null,null,"˂--- заполнить ФИО ответственного"]
[null,null,null,null,null,null,null,null,null,null,null,null,null,null,null,null,null,null,null,null,null,null,null,null,null,null,null,"подпись"]

{"sheet":"Заявление на деньги","index":1,"n_rows":38,"n_cols":321,"rows_kept":38,"cut":false,"hidden":false,"merged":[[20,0,20,6],[22,18,22,35],[23,18,23,35],[24,18,24,35],[37,0,37,6],[34,0,34,48],[30,16,31,48],[25,18,25,35],[26,18,26,35],[22,0,22,17],[23,0,23,17],[24,0,24,17],[25,0,25,17],[26,0,26,17],[36,0,36,48],[30,8,30,15],[31,8,31,15],[30,0,30,7],[27,18,27,35],[27,0,27,17],[31,1,31,6],[20,7,20,13],[20,17,20,19],[20,20,20,21],[0,90,0,98],[1,65,1,98],[3,78,3,98],[4,78,4,98],[5,78,5,98],[12,15,13,48],[15,0,15,48],[17,0,18,49],[10,30,10,48],[0,40,0,48],[1,15,1,48],[8,30,8,48],[3,28,3,48],[9,41,9,45],[4,28,4,48],[5,28,5,48],[6,28,6,48],[15,50,15,98],[17,50,18,99],[6,78,6,98],[8,80,8,98],[9,91,9,95],[10,80,10,98],[12,65,13,98],[15,100,15,148],[17,100,18,149],[6,128,6,148],[8,130,8,148],[9,141,9,145],[10,130,10,148],[12,115,13,148],[23,50,23,67],[23,68,23,85],[36,100,36,148],[25,68,25,85],[30,116,31,148],[31,108,31,115],[20,50,20,56],[22,50,22,67],[22,68,22,85],[31,51,31,56],[31,101,31,106],[22,100,22,117],[34,100,34,148],[25,100,25,117],[25,118,25,135],[26,100,26,117],[26,118,26,135],[27,100,27,117],[27,118,27,135],[24,100,24,117],[24,50,24,67],[24,68,24,85],[25,50,25,67],[36,50,36,98],[27,168,27,185],[30,158,30,165],[30,166,31,198],[31,158,31,165],[37,100,37,106],[0,190,0,198],[1,165,1,198],[3,178,3,198],[4,178,4,198],[5,178,5,198],[6,178,6,198],[8,180,8,198],[9,191,9,195],[10,180,10,198],[12,165,13,198],[15,150,15,198],[17,150,18,199],[20,150,20,156],[22,150,22,167],[30,100,30,107],[30,108,30,115],[0,140,0,148],[1,115,1,148],[37,150,37,156],[3,128,3,148],[4,128,4,148],[5,128,5,148],[36,150,36,198],[20,15,20,16],[30,150,30,157],[34,150,34,198],[25,150,25,167],[25,168,25,185],[26,150,26,167],[26,168,26,185],[27,150,27,167],[20,100,20,106],[24,118,24,135],[34,50,34,98],[31,151,31,156],[22,168,22,185],[23,150,23,167],[23,168,23,185],[24,150,24,167],[24,168,24,185],[22,118,22,135],[23,100,23,117],[23,118,23,135],[37,50,37,56],[26,50,26,67],[26,68,26,85],[27,50,27,67],[27,68,27,85],[30,50,30,57],[30,58,30,65],[30,66,31,98],[31,58,31,65],[6,228,6,248],[8,230,8,248],[9,241,9,245],[10,230,10,248],[12,215,13,248],[0,240,0,248],[1,215,1,248],[3,228,3,248],[4,228,4,248],[5,228,5,248],[23,200,23,217],[23,218,23,235],[24,200,24,217],[24,218,24,235],[25,200,25,217],[25,218,25,235],[15,200,15,248],[17,200,18,249],[20,200,20,206],[22,200,22,217],[22,218,22,235],[34,200,34,248],[36,200,36,248],[37,200,37,206],[0,290,0,298],[1,265,1,298],[3,278,3,298],[4,278,4,298],[5,278,5,298],[6,278,6,298],[8,280,8,298],[9,291,9,295],[10,280,10,298],[12,265,13,298],[15,250,15,298],[17,250,18,299],[20,250,20,256],[26,200,26,217],[26,218,26,235],[27,200,27,217],[27,218,27,235],[30,200,30,207],[30,208,30,215],[30,216,31,248],[31,208,31,215],[30,266,31,298],[31,258,31,265],[24,250,24,267],[24,268,24,285],[25,250,25,267],[25,268,25,285],[26,250,26,267],[26,268,26,285],[22,250,22,267],[22,268,22,285],[23,250,23,267],[23,268,23,285],[20,307,20,313],[20,315,20,316],[20,317,20,319],[20,320,20,321],[34,250,34,298],[36,250,36,298],[37,250,37,256],[0,340,0,348],[1,315,1,348],[3,328,3,348],[4,328,4,348],[5,328,5,348],[6,328,6,348],[8,330,8,348],[9,341,9,345],[10,330,10,348],[12,315,13,348],[15,300,15,348],[17,300,18,349],[20,300,20,306],[27,250,27,267],[27,268,27,285],[30,250,30,257],[30,258,30,265],[24,318,24,335],[25,300,25,317],[25,318,25,335],[26,300,26,317],[26,318,26,335],[22,300,22,317],[22,318,22,335],[23,300,23,317],[23,318,23,335],[34,300,34,348],[36,300,36,348],[37,300,37,306],[27,300,27,317],[27,318,27,335],[30,300,30,307],[30,308,30,315],[30,316,31,348],[31,308,31,315],[31,201,31,206],[31,251,31,256],[31,301,31,306],[20,57,20,63],[20,65,20,66],[20,67,20,69],[20,70,20,71],[20,107,20,113],[20,115,20,116],[20,117,20,119],[20,120,20,121],[20,157,20,163],[20,165,20,166],[20,167,20,169],[20,170,20,171],[20,207,20,213],[20,215,20,216],[20,217,20,219],[20,220,20,221],[20,257,20,263],[20,265,20,266],[20,267,20,269],[20,270,20,271],[24,300,24,317]]}
[]
[]
[]
[]
[]
[]
[]
[]
[]
[]
[]
[]
[null,null,null,null,null,null,null,null,null,null,null,null,null,null,null,{"$f":"IF('Служебная записка'!$X$12=Настройки!$A$2,Настройки!$D$2,(IF('Служебная записка'!$X$12=Настройки!$A$3,Настройки!$D$3,(IF('Служебная записка'!$X$12=Настройки!$A$4,Настройки!$D$4,(IF('Служебная записка'!$X$12=Настройки!$A$5,Настройки!$D$5,(IF('Служебная записка'!$X$12=Настройки!$A$6,Настройки!$D$6,(IF('Служебная записка'!$X$12=Настройки!$A$8,Настройки!$D$8,(IF('Служебная записка'!$X$12=Настройки!$A$9,Настройки!$D$9,(IF('Служебная записка'!$X$12=Настройки!$A$10,Настройки!$D$10,(IF('Служебная записка'!$X$12=Настройки!$A$11,Настройки!$D$11,(IF('Служебная записка'!$X$12=Настройки!$A$12,Настройки!$D$12,(IF('Служебная записка'!$X$12=Настройки!$A$13,Настройки!$D$13,(IF('Служебная записка'!$X$12=Настройки!$A$14,Настройки!$D$14,(IF('Служебная записка'!$X$12=Настройки!$A$15,Настройки!$D$15,(IF('Служебная записка'!$X$12=Настройки!$A$16,Настройки!$D$16,(IF('Служебная записка'!$X$12=Настройки!$A$17,Настройки!$D$17,(IF('Служебная записка'!$X$12=Настройки!$A$18,Настройки!$D$18,(IF('Служебная записка'!$X$12=Настройки!$A$19,Настройки!$D$19,(IF('Служебная записка'!$X$12=Настройки!$A$20,Настройки!$D$20,)))))))))))))))))))))))))))))))))))","v":"от Ве"},null,null,null,null,null,null,null,null,null,null,null,null,null,null,null,null,null,null,null,null,null,null,null,null,null,null,null,null,null,null,null,null,null,null,null,null,null,null,null,null,null,null,null,null,null,null,null,null,null,{"$f":"IF('Служебная записка'!$X$13=Настройки!$A$2,Настройки!$D$2,(IF('Служебная записка'!$X$13=Настройки!$A$3,Настройки!$D$3,(IF('Служебная записка'!$X$13=Настройки!$A$4,Настройки!$D$4,(IF('Служебная записка'!$X$13=Настройки!$A$5,Настройки!$D$5,(IF('Служебная записка'!$X$13=Настройки!$A$6,Настройки!$D$6,(IF('Служебная записка'!$X$13=Настройки!$A$8,Настройки!$D$8,(IF('Служебная записка'!$X$13=Настройки!$A$9,Настройки!$D$9,(IF('Служебная записка'!$X$13=Настройки!$A$10,Настройки!$D$10,(IF('Служебная записка'!$X$13=Настройки!$A$11,Настройки!$D$11,(IF('Служебная записка'!$X$13=Настройки!$A$12,Настройки!$D$12,(IF('Служебная записка'!$X$13=Настройки!$A$13,Настройки!$D$13,(IF('Служебная записка'!$X$13=Настройки!$A$14,Настройки!$D$14,(IF('Служебная записка'!$X$13=Настройки!$A$15,Настройки!$D$15,(IF('Служебная записка'!$X$13=Настройки!$A$16,Настройки!$D$16,(IF('Служебная записка'!$X$13=Настройки!$A$17,Настройки!$D$17,(IF('Служебная записка'!$X$13=Настройки!$A$18,Настройки!$D$18,(IF('Служебная записка'!$X$13=Настройки!$A$19,Настройки!$D$19,(IF('Служебная записка'!$X$13=Настройки!$A$20,Настройки!$D$20,)))))))))))))))))))))))))))))))))))","v":"от Ин"},null,null,null,null,null,null,null,null,null,null,null,null,null,null,null,null,null,null,null,null,null,null,null,null,null,null,null,null,null,null,null,null,null,null,null,null,null,null,null,null,null,null,null,null,null,null,null,null,null,{"$f":"IF('Служебная записка'!$X$14=Настройки!$A$2,Настройки!$D$2,(IF('Служебная записка'!$X$14=Настройки!$A$3,Настройки!$D$3,(IF('Служебная записка'!$X$14=Настройки!$A$4,Настройки!$D$4,(IF('Служебная записка'!$X$14=Настройки!$A$5,Настройки!$D$5,(IF('Служебная записка'!$X$14=Настройки!$A$6,Настройки!$D$6,(IF('Служебная записка'!$X$14=Настройки!$A$8,Настройки!$D$8,(IF('Служебная записка'!$X$14=Настройки!$A$9,Настройки!$D$9,(IF('Служебная записка'!$X$14=Настройки!$A$10,Настройки!$D$10,(IF('Служебная записка'!$X$14=Настройки!$A$11,Настройки!$D$11,(IF('Служебная записка'!$X$14=Настройки!$A$12,Настройки!$D$12,(IF('Служебная записка'!$X$14=Настройки!$A$13,Настройки!$D$13,(IF('Служебная записка'!$X$14=Настройки!$A$14,Настройки!$D$14,(IF('Служебная записка'!$X$14=Настройки!$A$15,Настройки!$D$15,(IF('Служебная записка'!$X$14=Настройки!$A$16,Настройки!$D$16,(IF('Служебная записка'!$X$14=Настройки!$A$17,Настройки!$D$17,(IF('Служебная записка'!$X$14=Настройки!$A$18,Настройки!$D$18,(IF('Служебная записка'!$X$14=Настройки!$A$19,Настройки!$D$19,(IF('Служебная записка'!$X$14=Настройки!$A$20,Настройки!$D$20,)))))))))))))))))))))))))))))))))))","v":"от Эл"},null,null,null,null,null,null,null,null,null,null,null,null,null,null,null,null,null,null,null,null,null,null,null,null,null,null,null,null,null,null,null,null,null,null,null,null,null,null,null,null,null,null,null,null,null,null,null,null,null,{"$f":"IF('Служебная записка'!$X$15=Настройки!$A$2,Настройки!$D$2,(IF('Служебная записка'!$X$15=Настройки!$A$3,Настройки!$D$3,(IF('Служебная записка'!$X$15=Настройки!$A$4,Настройки!$D$4,(IF('Служебная записка'!$X$15=Настройки!$A$5,Настройки!$D$5,(IF('Служебная записка'!$X$15=Настройки!$A$6,Настройки!$D$6,(IF('Служебная записка'!$X$15=Настройки!$A$8,Настройки!$D$8,(IF('Служебная записка'!$X$15=Настройки!$A$9,Настройки!$D$9,(IF('Служебная записка'!$X$15=Настройки!$A$10,Настройки!$D$10,(IF('Служебная записка'!$X$15=Настройки!$A$11,Настройки!$D$11,(IF('Служебная записка'!$X$15=Настройки!$A$12,Настройки!$D$12,(IF('Служебная записка'!$X$15=Настройки!$A$13,Настройки!$D$13,(IF('Служебная записка'!$X$15=Настройки!$A$14,Настройки!$D$14,(IF('Служебная записка'!$X$15=Настройки!$A$15,Настройки!$D$15,(IF('Служебная записка'!$X$15=Настройки!$A$16,Настройки!$D$16,(IF('Служебная записка'!$X$15=Настройки!$A$17,Настройки!$D$17,(IF('Служебная записка'!$X$15=Настройки!$A$18,Настройки!$D$18,(IF('Служебная записка'!$X$15=Настройки!$A$19,Настройки!$D$19,(IF('Служебная записка'!$X$15=Настройки!$A$20,Настройки!$D$20,)))))))))))))))))))))))))))))))))))","v":"от Ру"},null,null,null,null,null,null,null,null,null,null,null,null,null,null,null,null,null,null,null,null,null,null,null,null,null,null,null,null,null,null,null,null,null,null,null,null,null,null,null,null,null,null,null,null,null,null,null,null,null,{"$f":"IF('Служебная записка'!$X$16=Настройки!$A$2,Настройки!$D$2,(IF('Служебная записка'!$X$16=Настройки!$A$3,Настройки!$D$3,(IF('Служебная записка'!$X$16=Настройки!$A$4,Настройки!$D$4,(IF('Служебная записка'!$X$16=Настройки!$A$5,Настройки!$D$5,(IF('Служебная записка'!$X$16=Настройки!$A$6,Настройки!$D$6,(IF('Служебная записка'!$X$16=Настройки!$A$8,Настройки!$D$8,(IF('Служебная записка'!$X$16=Настройки!$A$9,Настройки!$D$9,(IF('Служебная записка'!$X$16=Настройки!$A$10,Настройки!$D$10,(IF('Служебная записка'!$X$16=Настройки!$A$11,Настройки!$D$11,(IF('Служебная записка'!$X$16=Настройки!$A$12,Настройки!$D$12,(IF('Служебная записка'!$X$16=Настройки!$A$13,Настройки!$D$13,(IF('Служебная записка'!$X$16=Настройки!$A$14,Настройки!$D$14,(IF('Служебная записка'!$X$16=Настройки!$A$15,Настройки!$D$15,(IF('Служебная записка'!$X$16=Настройки!$A$16,Настройки!$D$16,(IF('Служебная записка'!$X$16=Настройки!$A$17,Настройки!$D$17,(IF('Служебная записка'!$X$16=Настройки!$A$18,Настройки!$D$18,(IF('Служебная записка'!$X$16=Настройки!$A$19,Настройки!$D$19,(IF('Служебная записка'!$X$16=Настройки!$A$20,Настройки!$D$20,)))))))))))))))))))))))))))))))))))","v":"от Ин"},null,null,null,null,null,null,null,null,null,null,null,null,null,null,null,null,null,null,null,null,null,null,null,null,null,null,null,null,null,null,null,null,null,null,null,null,null,null,null,null,null,null,null,null,null,null,null,null,null,{"$f":"IF('Служебная записка'!$X$17=Настройки!$A$2,Настройки!$D$2,(IF('Служебная записка'!$X$17=Настройки!$A$3,Настройки!$D$3,(IF('Служебная записка'!$X$17=Настройки!$A$4,Настройки!$D$4,(IF('Служебная записка'!$X$17=Настройки!$A$5,Настройки!$D$5,(IF('Служебная записка'!$X$17=Настройки!$A$6,Настройки!$D$6,(IF('Служебная записка'!$X$17=Настройки!$A$8,Настройки!$D$8,(IF('Служебная записка'!$X$17=Настройки!$A$9,Настройки!$D$9,(IF('Служебная записка'!$X$17=Настройки!$A$10,Настройки!$D$10,(IF('Служебная записка'!$X$17=Настройки!$A$11,Настройки!$D$11,(IF('Служебная записка'!$X$17=Настройки!$A$12,Настройки!$D$12,(IF('Служебная записка'!$X$17=Настройки!$A$13,Настройки!$D$13,(IF('Служебная записка'!$X$17=Настройки!$A$14,Настройки!$D$14,(IF('Служебная записка'!$X$17=Настройки!$A$15,Настройки!$D$15,(IF('Служебная записка'!$X$17=Настройки!$A$16,Настройки!$D$16,(IF('Служебная записка'!$X$17=Настройки!$A$17,Настройки!$D$17,(IF('Служебная записка'!$X$17=Настройки!$A$18,Настройки!$D$18,(IF('Служебная записка'!$X$17=Настройки!$A$19,Настройки!$D$19,(IF('Служебная записка'!$X$17=Настройки!$A$20,Настройки!$D$20,)))))))))))))))))))))))))))))))))))","v":"от водителя Кр В.Н"},null,null,null,null,null,null,null,null,null,null,null,null,null,null,null,null,null,null,null,null,null,null,null,null,null,null,null,null,null,null,null,null,null,null,null,null,null,null,null,null,null,null,null,null,null,null,null,null,null,{"$f":"IF('Служебная записка'!$X$18=Настройки!$A$2,Настройки!$D$2,(IF('Служебная записка'!$X$18=Настройки!$A$3,Настройки!$D$3,(IF('Служебная записка'!$X$18=Настройки!$A$4,Настройки!$D$4,(IF('Служебная записка'!$X$18=Настройки!$A$5,Настройки!$D$5,(IF('Служебная записка'!$X$18=Настройки!$A$6,Настройки!$D$6,(IF('Служебная записка'!$X$18=Настройки!$A$8,Настройки!$D$8,(IF('Служебная записка'!$X$18=Настройки!$A$9,Настройки!$D$9,(IF('Служебная записка'!$X$18=Настройки!$A$10,Настройки!$D$10,(IF('Служебная записка'!$X$18=Настройки!$A$11,Настройки!$D$11,(IF('Служебная записка'!$X$18=Настройки!$A$12,Настройки!$D$12,(IF('Служебная записка'!$X$18=Настройки!$A$13,Настройки!$D$13,(IF('Служебная записка'!$X$18=Настройки!$A$14,Настройки!$D$14,(IF('Служебная записка'!$X$18=Настройки!$A$15,Настройки!$D$15,(IF('Служебная записка'!$X$18=Настройки!$A$16,Настройки!$D$16,(IF('Служебная записка'!$X$18=Настройки!$A$17,Настройки!$D$17,(IF('Служебная записка'!$X$18=Настройки!$A$18,Настройки!$D$18,(IF('Служебная записка'!$X$18=Настройки!$A$19,Настройки!$D$19,(IF('Служебная записка'!$X$18=Настройки!$A$20,Настройки!$D$20,)))))))))))))))))))))))))))))))))))","v":"от водителя Ба С.В."}]
[]
[]
["Заявление на выдачу денежных средств",null,null,null,null,null,null,null,null,null,null,null,null,null,null,null,null,null,null,null,null,null,null,null,null,null,null,null,null,null,null,null,null,null,null,null,null,null,null,null,null,null,null,null,null,null,null,null,null,null,"Заявление на выдачу денежных средств",null,null,null,null,null,null,null,null,null,null,null,null,null,null,null,null,null,null,null,null,null,null,null,null,null,null,null,null,null,null,null,null,null,null,null,null,null,null,null,null,null,null,null,null,null,null,null,null,null,"Заявление на выдачу денежных средств",null,null,null,null,null,null,null,null,null,null,null,null,null,null,null,null,null,null,null,null,null,null,null,null,null,null,null,null,null,null,null,null,null,null,null,null,null,null,null,null,null,null,null,null,null,null,null,null,null,"Заявление на выдачу денежных средств",null,null,null,null,null,null,null,null,null,null,null,null,null,null,null,null,null,null,null,null,null,null,null,null,null,null,null,null,null,null,null,null,null,null,null,null,null,null,null,null,null,null,null,null,null,null,null,null,null,"Заявление на выдачу денежных средств",null,null,null,null,null,null,null,null,null,null,null,null,null,null,null,null,null,null,null,null,null,null,null,null,null,null,null,null,null,null,null,null,null,null,null,null,null,null,null,null,null,null,null,null,null,null,null,null,null,"Заявление на выдачу денежных средств",null,null,null,null,null,null,null,null,null,null,null,null,null,null,null,null,null,null,null,null,null,null,null,null,null,null,null,null,null,null,null,null,null,null,null,null,null,null,null,null,null,null,null,null,null,null,null,null,null,"Заявление на выдачу денежных средств"]
[]
[{"$f":"Настройки!$A$34","v":"Прошу выдать денежные средства на командировочные расходы  на срок \n 2, в сумме 1000 руб. на мою зарплатную карту."},null,null,null,null,null,null,null,null,null,null,null,null,null,null,null,null,null,null,null,null,null,null,null,null,null,null,null,null,null,null,null,null,null,null,null,null,null,null,null,null,null,null,null,null,null,null,null,null,null,{"$f":"Настройки!$A$34","v":"Прошу выдать денежные средства на командировочные расходы  на срок \n 2, в сумме 1000 руб. на мою зарплатную карту."},null,null,null,null,null,null,null,null,null,null,null,null,null,null,null,null,null,null,null,null,null,null,null,null,null,null,null,null,null,null,null,null,null,null,null,null,null,null,null,null,null,null,null,null,null,null,null,null,null,{"$f":"Настройки!$A$34","v":"Прошу выдать денежные средства на командировочные расходы  на срок \n 2, в сумме 1000 руб. на мою зарплатную карту."},null,null,null,null,null,null,null,null,null,null,null,null,null,null,null,null,null,null,null,null,null,null,null,null,null,null,null,null,null,null,null,null,null,null,null,null,null,null,null,null,null,null,null,null,null,null,null,null,null,{"$f":"Настройки!$A$34","v":"Прошу выдать денежные средства на командировочные расходы  на срок \n 2, в сумме 1000 руб. на мою зарплатную карту."},null,null,null,null,null,null,null,null,null,null,null,null,null,null,null,null,null,null,null,null,null,null,null,null,null,null,null,null,null,null,null,null,null,null,null,null,null,null,null,null,null,null,null,null,null,null,null,null,null,{"$f":"Настройки!$A$34","v":"Прошу выдать денежные средства на командировочные расходы  на срок \n 2, в сумме 1000 руб. на мою зарплатную карту."},null,null,null,null,null,null,null,null,null,null,null,null,null,null,null,null,null,null,null,null,null,null,null,null,null,null,null,null,null,null,null,null,null,null,null,null,null,null,null,null,null,null,null,null,null,null,null,null,null,{"$f":"Настройки!$A$34","v":"Прошу выдать денежные средства на командировочные расходы  на срок \n 2, в сумме 1000 руб. на мою зарплатную карту."},null,null,null,null,null,null,null,null,null,null,null,null,null,null,null,null,null,null,null,null,null,null,null,null,null,null,null,null,null,null,null,null,null,null,null,null,null,null,null,null,null,null,null,null,null,null,null,null,null,{"$f":"Настройки!$A$34","v":"Прошу выдать денежные средства на командировочные расходы  на срок \n 2, в сумме 1000 руб. на мою зарплатную карту."}]
[]
[]
["Приказ от ",null,null,null,null,null,null,"___________",null,null,null,null,null,null,null,"№",null,"_____",null,null,"-К",null,null,null,null,null,null,null,null,null,null,null,null,null,null,null,null,null,null,null,null,null,null,null,null,null,null,null,null,null,"Приказ от ",null,null,null,null,null,null,"___________",null,null,null,null,null,null,null,"№",null,"_____",null,null,"-К",null,null,null,null,null,null,null,null,null,null,null,null,null,null,null,null,null,null,null,null,null,null,null,null,null,null,null,null,null,"Приказ от ",null,null,null,null,null,null,"___________",null,null,null,null,null,null,null,"№",null,"_____",null,null,"-К",null,null,null,null,null,null,null,null,null,null,null,null,null,null,null,null,null,null,null,null,null,null,null,null,null,null,null,null,null,"Приказ от ",null,null,null,null,null,null,"___________",null,null,null,null,null,null,null,"№",null,"_____",null,null,"-К",null,null,null,null,null,null,null,null,null,null,null,null,null,null,null,null,null,null,null,null,null,null,null,null,null,null,null,null,null,"Приказ от ",null,null,null,null,null,null,"___________",null,null,null,null,null,null,null,"№",null,"_____",null,null,"-К",null,null,null,null,null,null,null,null,null,null,null,null,null,null,null,null,null,null,null,null,null,null,null,null,null,null,null,null,null,"Приказ от ",null,null,null,null,null,null,"___________",null,null,null,null,null,null,null,"№",null,"_____",null,null,"-К",null,null,null,null,null,null,null,null,null,null,null,null,null,null,null,null,null,null,null,null,null,null,null,null,null,null,null,null,null,"Приказ от ",null,null,null,null,null,null,"___________",null,null,null,null,null,null,null,"№",null,"_____",null,null,"-К"]
[]
["Вид расходов",null,null,null,null,null,null,null,null,null,null,null,null,null,null,null,null,null,"Сумма",null,null,null,null,null,null,null,null,null,null,null,null,null,null,null,null,null,null,null,null,null,null,null,null,null,null,null,null,null,null,null,"Вид расходов",null,null,null,null,null,null,null,null,null,null,null,null,null,null,null,null,null,"Сумма",null,null,null,null,null,null,null,null,null,null,null,null,null,null,null,null,null,null,null,null,null,null,null,null,null,null,null,null,null,null,null,"Вид расходов",null,null,null,null,null,null,null,null,null,null,null,null,null,null,null,null,null,"Сумма",null,null,null,null,null,null,null,null,null,null,null,null,null,null,null,null,null,null,null,null,null,null,null,null,null,null,null,null,null,null,null,"Вид расходов",null,null,null,null,null,null,null,null,null,null,null,null,null,null,null,null,null,"Сумма",null,null,null,null,null,null,null,null,null,null,null,null,null,null,null,null,null,null,null,null,null,null,null,null,null,null,null,null,null,null,null,"Вид расходов",null,null,null,null,null,null,null,null,null,null,null,null,null,null,null,null,null,"Сумма",null,null,null,null,null,null,null,null,null,null,null,null,null,null,null,null,null,null,null,null,null,null,null,null,null,null,null,null,null,null,null,"Вид расходов",null,null,null,null,null,null,null,null,null,null,null,null,null,null,null,null,null,"Сумма",null,null,null,null,null,null,null,null,null,null,null,null,null,null,null,null,null,null,null,null,null,null,null,null,null,null,null,null,null,null,null,"Вид расходов",null,null,null,null,null,null,null,null,null,null,null,null,null,null,null,null,null,"Сумма"]
["Суточные",null,null,null,null,null,null,null,null,null,null,null,null,null,null,null,null,null,{"$f":"CONCATENATE(Настройки!$D$33,Настройки!$E$33)","v":"1000 руб."},null,null,null,null,null,null,null,null,null,null,null,null,null,null,null,null,null,null,null,null,null,null,null,null,null,null,null,null,null,null,null,"Суточные",null,null,null,null,null,null,null,null,null,null,null,null,null,null,null,null,null,{"$f":"S24","v":"1000 руб."},null,null,null,null,null,null,null,null,null,null,null,null,null,null,null,null,null,null,null,null,null,null,null,null,null,null,null,null,null,null,null,"Суточные",null,null,null,null,null,null,null,null,null,null,null,null,null,null,null,null,null,{"$f":"BQ24","v":"1000 руб."},null,null,null,null,null,null,null,null,null,null,null,null,null,null,null,null,null,null,null,null,null,null,null,null,null,null,null,null,null,null,null,"Суточные",null,null,null,null,null,null,null,null,null,null,null,null,null,null,null,null,null,{"$f":"DO24","v":"1000 руб."},null,null,null,null,null,null,null,null,null,null,null,null,null,null,null,null,null,null,null,null,null,null,null,null,null,null,null,null,null,null,null,"Суточные",null,null,null,null,null,null,null,null,null,null,null,null,null,null,null,null,null,{"$f":"FM24","v":"1000 руб."},null,null,null,null,null,null,null,null,null,null,null,null,null,null,null,null,null,null,null,null,null,null,null,null,null,null,null,null,null,null,null,"Суточные",null,null,null,null,null,null,null,null,null,null,null,null,null,null,null,null,null,{"$f":"HK24","v":"1000 руб."},null,null,null,null,null,null,null,null,null,null,null,null,null,null,null,null,null,null,null,null,null,null,null,null,null,null,null,null,null,null,null,"Суточные",null,null,null,null,null,null,null,null,null,null,null,null,null,null,null,null,null,{"$f":"JI24","v":"1000 руб."}]
["Проживание",null,null,null,null,null,null,null,null,null,null,null,null,null,null,null,null,null,"-",null,null,null,null,null,null,null,null,null,null,null,null,null,null,null,null,null,null,null,null,null,null,null,null,null,null,null,null,null,null,null,"Проживание",null,null,null,null,null,null,null,null,null,null,null,null,null,null,null,null,null,"-",null,null,null,null,null,null,null,null,null,null,null,null,null,null,null,null,null,null,null,null,null,null,null,null,null,null,null,null,null,null,null,"Проживание",null,null,null,null,null,null,null,null,null,null,null,null,null,null,null,null,null,"-",null,null,null,null,null,null,null,null,null,null,null,null,null,null,null,null,null,null,null,null,null,null,null,null,null,null,null,null,null,null,null,"Проживание",null,null,null,null,null,null,null,null,null,null,null,null,null,null,null,null,null,"-",null,null,null,null,null,null,null,null,null,null,null,null,null,null,null,null,null,null,null,null,null,null,null,null,null,null,null,null,null,null,null,"Проживание",null,null,null,null,null,null,null,null,null,null,null,null,null,null,null,null,null,"-",null,null,null,null,null,null,null,null,null,null,null,null,null,null,null,null,null,null,null,null,null,null,null,null,null,null,null,null,null,null,null,"Проживание",null,null,null,null,null,null,null,null,null,null,null,null,null,null,null,null,null,"-",null,null,null,null,null,null,null,null,null,null,null,null,null,null,null,null,null,null,null,null,null,null,null,null,null,null,null,null,null,null,null,"Проживание",null,null,null,null,null,null,null,null,null,null,null,null,null,null,null,null,null,"-"]
["Проезд авиа/ж-д",null,null,null,null,null,null,null,null,null,null,null,null,null,null,null,null,null,"-",null,null,null,null,null,null,null,null,null,null,null,null,null,null,null,null,null,null,null,null,null,null,null,null,null,null,null,null,null,null,null,"Проезд авиа/ж-д",null,null,null,null,null,null,null,null,null,null,null,null,null,null,null,null,null,"-",null,null,null,null,null,null,null,null,null,null,null,null,null,null,null,null,null,null,null,null,null,null,null,null,null,null,null,null,null,null,null,"Проезд авиа/ж-д",null,null,null,null,null,null,null,null,null,null,null,null,null,null,null,null,null,"-",null,null,null,null,null,null,null,null,null,null,null,null,null,null,null,null,null,null,null,null,null,null,null,null,null,null,null,null,null,null,null,"Проезд авиа/ж-д",null,null,null,null,null,null,null,null,null,null,null,null,null,null,null,null,null,"-",null,null,null,null,null,null,null,null,null,null,null,null,null,null,null,null,null,null,null,null,null,null,null,null,null,null,null,null,null,null,null,"Проезд авиа/ж-д",null,null,null,null,null,null,null,null,null,null,null,null,null,null,null,null,null,"-",null,null,null,null,null,null,null,null,null,null,null,null,null,null,null,null,null,null,null,null,null,null,null,null,null,null,null,null,null,null,null,"Проезд авиа/ж-д",null,null,null,null,null,null,null,null,null,null,null,null,null,null,null,null,null,"-",null,null,null,null,null,null,null,null,null,null,null,null,null,null,null,null,null,null,null,null,null,null,null,null,null,null,null,null,null,null,null,"Проезд авиа/ж-д",null,null,null,null,null,null,null,null,null,null,null,null,null,null,null,null,null,"-"]
["Прочие расходы",null,null,null,null,null,null,null,null,null,null,null,null,null,null,null,null,null,"-",null,null,null,null,null,null,null,null,null,null,null,null,null,null,null,null,null,null,null,null,null,null,null,null,null,null,null,null,null,null,null,"Прочие расходы",null,null,null,null,null,null,null,null,null,null,null,null,null,null,null,null,null,"-",null,null,null,null,null,null,null,null,null,null,null,null,null,null,null,null,null,null,null,null,null,null,null,null,null,null,null,null,null,null,null,"Прочие расходы",null,null,null,null,null,null,null,null,null,null,null,null,null,null,null,null,null,"-",null,null,null,null,null,null,null,null,null,null,null,null,null,null,null,null,null,null,null,null,null,null,null,null,null,null,null,null,null,null,null,"Прочие расходы",null,null,null,null,null,null,null,null,null,null,null,null,null,null,null,null,null,"-",null,null,null,null,null,null,null,null,null,null,null,null,null,null,null,null,null,null,null,null,null,null,null,null,null,null,null,null,null,null,null,"Прочие расходы",null,null,null,null,null,null,null,null,null,null,null,null,null,null,null,null,null,"-",null,null,null,null,null,null,null,null,null,null,null,null,null,null,null,null,null,null,null,null,null,null,null,null,null,null,null,null,null,null,null,"Прочие расходы",null,null,null,null,null,null,null,null,null,null,null,null,null,null,null,null,null,"-",null,null,null,null,null,null,null,null,null,null,null,null,null,null,null,null,null,null,null,null,null,null,null,null,null,null,null,null,null,null,null,"Прочие расходы",null,null,null,null,null,null,null,null,null,null,null,null,null,null,null,null,null,"-"]
["ИТОГО",null,null,null,null,null,null,null,null,null,null,null,null,null,null,null,null,null,{"$f":"$S$24","v":"1000 руб."},null,null,null,null,null,null,null,null,null,null,null,null,null,null,null,null,null,null,null,null,null,null,null,null,null,null,null,null,null,null,null,"ИТОГО",null,null,null,null,null,null,null,null,null,null,null,null,null,null,null,null,null,{"$f":"$S$24","v":"1000 руб."},null,null,null,null,null,null,null,null,null,null,null,null,null,null,null,null,null,null,null,null,null,null,null,null,null,null,null,null,null,null,null,"ИТОГО",null,null,null,null,null,null,null,null,null,null,null,null,null,null,null,null,null,{"$f":"$S$24","v":"1000 руб."},null,null,null,null,null,null,null,null,null,null,null,null,null,null,null,null,null,null,null,null,null,null,null,null,null,null,null,null,null,null,null,"ИТОГО",null,null,null,null,null,null,null,null,null,null,null,null,null,null,null,null,null,{"$f":"$S$24","v":"1000 руб."},null,null,null,null,null,null,null,null,null,null,null,null,null,null,null,null,null,null,null,null,null,null,null,null,null,null,null,null,null,null,null,"ИТОГО",null,null,null,null,null,null,null,null,null,null,null,null,null,null,null,null,null,{"$f":"$S$24","v":"1000 руб."},null,null,null,null,null,null,null,null,null,null,null,null,null,null,null,null,null,null,null,null,null,null,null,null,null,null,null,null,null,null,null,"ИТОГО",null,null,null,null,null,null,null,null,null,null,null,null,null,null,null,null,null,{"$f":"$S$24","v":"1000 руб."},null,null,null,null,null,null,null,null,null,null,null,null,null,null,null,null,null,null,null,null,null,null,null,null,null,null,null,null,null,null,null,"ИТОГО",null,null,null,null,null,null,null,null,null,null,null,null,null,null,null,null,null,{"$f":"$S$24","v":"1000 руб."}]
[]
[]
[{"$f":"CONCATENATE($H$21,$J$21,$L$21)","v":"___________"},null,null,null,null,null,null,null,"______________",null,null,null,null,null,null,null,{"$f":"IF('Служебная записка'!$X$12=Настройки!$A$2,Настройки!$C$2,(IF('Служебная записка'!$X$12=Настройки!$A$3,Настройки!$C$3,(IF('Служебная записка'!$X$12=Настройки!$A$4,Настройки!$C$4,(IF('Служебная записка'!$X$12=Настройки!$A$5,Настройки!$C$5,(IF('Служебная записка'!$X$12=Настройки!$A$6,Настройки!$C$6,(IF('Служебная записка'!$X$12=Настройки!$A$8,Настройки!$C$8,(IF('Служебная записка'!$X$12=Настройки!$A$9,Настройки!$C$9,(IF('Служебная записка'!$X$12=Настройки!$A$10,Настройки!$C$10,(IF('Служебная записка'!$X$12=Настройки!$A$11,Настройки!$C$11,(IF('Служебная записка'!$X$12=Настройки!$A$12,Настройки!$C$12,(IF('Служебная записка'!$X$12=Настройки!$A$13,Настройки!$C$13,(IF('Служебная записка'!$X$12=Настройки!$A$14,Настройки!$C$14,(IF('Служебная записка'!$X$12=Настройки!$A$15,Настройки!$C$15,(IF('Служебная записка'!$X$12=Настройки!$A$16,Настройки!$C$16,(IF('Служебная записка'!$X$12=Настройки!$A$17,Настройки!$C$17,(IF('Служебная записка'!$X$12=Настройки!$A$18,Настройки!$C$18,(IF('Служебная записка'!$X$12=Настройки!$A$19,Настройки!$C$19,(IF('Служебная записка'!$X$12=Настройки!$A$20,Настройки!$C$20,)))))))))))))))))))))))))))))))))))","v":"Ве"},null,null,null,null,null,null,null,null,null,null,null,null,null,null,null,null,null,null,null,null,null,null,null,null,null,null,null,null,null,null,null,null,null,{"$f":"CONCATENATE($H$21,$J$21,$L$21)","v":"___________"},null,null,null,null,null,null,null,"______________",null,null,null,null,null,null,null,{"$f":"IF('Служебная записка'!$X$13=Настройки!$A$2,Настройки!$C$2,(IF('Служебная записка'!$X$13=Настройки!$A$3,Настройки!$C$3,(IF('Служебная записка'!$X$13=Настройки!$A$4,Настройки!$C$4,(IF('Служебная записка'!$X$13=Настройки!$A$5,Настройки!$C$5,(IF('Служебная записка'!$X$13=Настройки!$A$6,Настройки!$C$6,(IF('Служебная записка'!$X$13=Настройки!$A$8,Настройки!$C$8,(IF('Служебная записка'!$X$13=Настройки!$A$9,Настройки!$C$9,(IF('Служебная записка'!$X$13=Настройки!$A$10,Настройки!$C$10,(IF('Служебная записка'!$X$13=Настройки!$A$11,Настройки!$C$11,(IF('Служебная записка'!$X$13=Настройки!$A$12,Настройки!$C$12,(IF('Служебная записка'!$X$13=Настройки!$A$13,Настройки!$C$13,(IF('Служебная записка'!$X$13=Настройки!$A$14,Настройки!$C$14,(IF('Служебная записка'!$X$13=Настройки!$A$15,Настройки!$C$15,(IF('Служебная записка'!$X$13=Настройки!$A$16,Настройки!$C$16,(IF('Служебная записка'!$X$13=Настройки!$A$17,Настройки!$C$17,(IF('Служебная записка'!$X$13=Настройки!$A$18,Настройки!$C$18,(IF('Служебная записка'!$X$13=Настройки!$A$19,Настройки!$C$19,(IF('Служебная записка'!$X$13=Настройки!$A$20,Настройки!$C$20,)))))))))))))))))))))))))))))))))))","v":"Ин"},null,null,null,null,null,null,null,null,null,null,null,null,null,null,null,null,null,null,null,null,null,null,null,null,null,null,null,null,null,null,null,null,null,{"$f":"CONCATENATE($H$21,$J$21,$L$21)","v":"___________"},null,null,null,null,null,null,null,"______________",null,null,null,null,null,null,null,{"$f":"IF('Служебная записка'!$X$14=Настройки!$A$2,Настройки!$C$2,(IF('Служебная записка'!$X$14=Настройки!$A$3,Настройки!$C$3,(IF('Служебная записка'!$X$14=Настройки!$A$4,Настройки!$C$4,(IF('Служебная записка'!$X$14=Настройки!$A$5,Настройки!$C$5,(IF('Служебная записка'!$X$14=Настройки!$A$6,Настройки!$C$6,(IF('Служебная записка'!$X$14=Настройки!$A$8,Настройки!$C$8,(IF('Служебная записка'!$X$14=Настройки!$A$9,Настройки!$C$9,(IF('Служебная записка'!$X$14=Настройки!$A$10,Настройки!$C$10,(IF('Служебная записка'!$X$14=Настройки!$A$11,Настройки!$C$11,(IF('Служебная записка'!$X$14=Настройки!$A$12,Настройки!$C$12,(IF('Служебная записка'!$X$14=Настройки!$A$13,Настройки!$C$13,(IF('Служебная записка'!$X$14=Настройки!$A$14,Настройки!$C$14,(IF('Служебная записка'!$X$14=Настройки!$A$15,Настройки!$C$15,(IF('Служебная записка'!$X$14=Настройки!$A$16,Настройки!$C$16,(IF('Служебная записка'!$X$14=Настройки!$A$17,Настройки!$C$17,(IF('Служебная записка'!$X$14=Настройки!$A$18,Настройки!$C$18,(IF('Служебная записка'!$X$14=Настройки!$A$19,Настройки!$C$19,(IF('Служебная записка'!$X$14=Настройки!$A$20,Настройки!$C$20,)))))))))))))))))))))))))))))))))))","v":"Эл."},null,null,null,null,null,null,null,null,null,null,null,null,null,null,null,null,null,null,null,null,null,null,null,null,null,null,null,null,null,null,null,null,null,{"$f":"CONCATENATE($H$21,$J$21,$L$21)","v":"___________"},null,null,null,null,null,null,null,"______________",null,null,null,null,null,null,null,{"$f":"IF('Служебная записка'!$X$15=Настройки!$A$2,Настройки!$C$2,(IF('Служебная записка'!$X$15=Настройки!$A$3,Настройки!$C$3,(IF('Служебная записка'!$X$15=Настройки!$A$4,Настройки!$C$4,(IF('Служебная записка'!$X$15=Настройки!$A$5,Настройки!$C$5,(IF('Служебная записка'!$X$15=Настройки!$A$6,Настройки!$C$6,(IF('Служебная записка'!$X$15=Настройки!$A$8,Настройки!$C$8,(IF('Служебная записка'!$X$15=Настройки!$A$9,Настройки!$C$9,(IF('Служебная записка'!$X$15=Настройки!$A$10,Настройки!$C$10,(IF('Служебная записка'!$X$15=Настройки!$A$11,Настройки!$C$11,(IF('Служебная записка'!$X$15=Настройки!$A$12,Настройки!$C$12,(IF('Служебная записка'!$X$15=Настройки!$A$13,Настройки!$C$13,(IF('Служебная записка'!$X$15=Настройки!$A$14,Настройки!$C$14,(IF('Служебная записка'!$X$15=Настройки!$A$15,Настройки!$C$15,(IF('Служебная записка'!$X$15=Настройки!$A$16,Настройки!$C$16,(IF('Служебная записка'!$X$15=Настройки!$A$17,Настройки!$C$17,(IF('Служебная записка'!$X$15=Настройки!$A$18,Настройки!$C$18,(IF('Служебная записка'!$X$15=Настройки!$A$19,Настройки!$C$19,(IF('Служебная записка'!$X$15=Настройки!$A$20,Настройки!$C$20,)))))))))))))))))))))))))))))))))))","v":"Ру"},null,null,null,null,null,null,null,null,null,null,null,null,null,null,null,null,null,null,null,null,null,null,null,null,null,null,null,null,null,null,null,null,null,{"$f":"CONCATENATE($H$21,$J$21,$L$21)","v":"___________"},null,null,null,null,null,null,null,"______________",null,null,null,null,null,null,null,{"$f":"IF('Служебная записка'!$X$16=Настройки!$A$2,Настройки!$C$2,(IF('Служебная записка'!$X$16=Настройки!$A$3,Настройки!$C$3,(IF('Служебная записка'!$X$16=Настройки!$A$4,Настройки!$C$4,(IF('Служебная записка'!$X$16=Настройки!$A$5,Настройки!$C$5,(IF('Служебная записка'!$X$16=Настройки!$A$6,Настройки!$C$6,(IF('Служебная записка'!$X$16=Настройки!$A$8,Настройки!$C$8,(IF('Служебная записка'!$X$16=Настройки!$A$9,Настройки!$C$9,(IF('Служебная записка'!$X$16=Настройки!$A$10,Настройки!$C$10,(IF('Служебная записка'!$X$16=Настройки!$A$11,Настройки!$C$11,(IF('Служебная записка'!$X$16=Настройки!$A$12,Настройки!$C$12,(IF('Служебная записка'!$X$16=Настройки!$A$13,Настройки!$C$13,(IF('Служебная записка'!$X$16=Настройки!$A$14,Настройки!$C$14,(IF('Служебная записка'!$X$16=Настройки!$A$15,Настройки!$C$15,(IF('Служебная записка'!$X$16=Настройки!$A$16,Настройки!$C$16,(IF('Служебная записка'!$X$16=Настройки!$A$17,Настройки!$C$17,(IF('Служебная записка'!$X$16=Настройки!$A$18,Настройки!$C$18,(IF('Служебная записка'!$X$16=Настройки!$A$19,Настройки!$C$19,(IF('Служебная записка'!$X$16=Настройки!$A$20,Настройки!$C$20,)))))))))))))))))))))))))))))))))))","v":"Ин"},null,null,null,null,null,null,null,null,null,null,null,null,null,null,null,null,null,null,null,null,null,null,null,null,null,null,null,null,null,null,null,null,null,{"$f":"CONCATENATE($H$21,$J$21,$L$21)","v":"___________"},null,null,null,null,null,null,null,"______________",null,null,null,null,null,null,null,{"$f":"IF('Служебная записка'!$X$17=Настройки!$A$2,Настройки!$C$2,(IF('Служебная записка'!$X$17=Настройки!$A$3,Настройки!$C$3,(IF('Служебная записка'!$X$17=Настройки!$A$4,Настройки!$C$4,(IF('Служебная записка'!$X$17=Настройки!$A$5,Настройки!$C$5,(IF('Служебная записка'!$X$17=Настройки!$A$6,Настройки!$C$6,(IF('Служебная записка'!$X$17=Настройки!$A$8,Настройки!$C$8,(IF('Служебная записка'!$X$17=Настройки!$A$9,Настройки!$C$9,(IF('Служебная записка'!$X$17=Настройки!$A$10,Настройки!$C$10,(IF('Служебная записка'!$X$17=Настройки!$A$11,Настройки!$C$11,(IF('Служебная записка'!$X$17=Настройки!$A$12,Настройки!$C$12,(IF('Служебная записка'!$X$17=Настройки!$A$13,Настройки!$C$13,(IF('Служебная записка'!$X$17=Настройки!$A$14,Настройки!$C$14,(IF('Служебная записка'!$X$17=Настройки!$A$15,Настройки!$C$15,(IF('Служебная записка'!$X$17=Настройки!$A$16,Настройки!$C$16,(IF('Служебная записка'!$X$17=Настройки!$A$17,Настройки!$C$17,(IF('Служебная записка'!$X$17=Настройки!$A$18,Настройки!$C$18,(IF('Служебная записка'!$X$17=Настройки!$A$19,Настройки!$C$19,(IF('Служебная записка'!$X$17=Настройки!$A$20,Настройки!$C$20,)))))))))))))))))))))))))))))))))))","v":"Водитель Кр В.Н"},null,null,null,null,null,null,null,null,null,null,null,null,null,null,null,null,null,null,null,null,null,null,null,null,null,null,null,null,null,null,null,null,null,{"$f":"CONCATENATE($H$21,$J$21,$L$21)","v":"___________"},null,null,null,null,null,null,null,"______________",null,null,null,null,null,null,null,{"$f":"IF('Служебная записка'!$X$18=Настройки!$A$2,Настройки!$C$2,(IF('Служебная записка'!$X$18=Настройки!$A$3,Настройки!$C$3,(IF('Служебная записка'!$X$18=Настройки!$A$4,Настройки!$C$4,(IF('Служебная записка'!$X$18=Настройки!$A$5,Настройки!$C$5,(IF('Служебная записка'!$X$18=Настройки!$A$6,Настройки!$C$6,(IF('Служебная записка'!$X$18=Настройки!$A$8,Настройки!$C$8,(IF('Служебная записка'!$X$18=Настройки!$A$9,Настройки!$C$9,(IF('Служебная записка'!$X$18=Настройки!$A$10,Настройки!$C$10,(IF('Служебная записка'!$X$18=Настройки!$A$11,Настройки!$C$11,(IF('Служебная записка'!$X$18=Настройки!$A$12,Настройки!$C$12,(IF('Служебная записка'!$X$18=Настройки!$A$13,Настройки!$C$13,(IF('Служебная записка'!$X$18=Настройки!$A$14,Настройки!$C$14,(IF('Служебная записка'!$X$18=Настройки!$A$15,Настройки!$C$15,(IF('Служебная записка'!$X$18=Настройки!$A$16,Настройки!$C$16,(IF('Служебная записка'!$X$18=Настройки!$A$17,Настройки!$C$17,(IF('Служебная записка'!$X$18=Настройки!$A$18,Настройки!$C$18,(IF('Служебная записка'!$X$18=Настройки!$A$19,Настройки!$C$19,(IF('Служебная записка'!$X$18=Настройки!$A$20,Настройки!$C$20,)))))))))))))))))))))))))))))))))))","v":"Водитель БаС.В."}]
[null,"(дата)",null,null,null,null,null,null,"(Подпись)",null,null,null,null,null,null,null,null,null,null,null,null,null,null,null,null,null,null,null,null,null,null,null,null,null,null,null,null,null,null,null,null,null,null,null,null,null,null,null,null,null,null,"(дата)",null,null,null,null,null,null,"(Подпись)",null,null,null,null,null,null,null,null,null,null,null,null,null,null,null,null,null,null,null,null,null,null,null,null,null,null,null,null,null,null,null,null,null,null,null,null,null,null,null,null,null,null,"(дата)",null,null,null,null,null,null,"(Подпись)",null,null,null,null,null,null,null,null,null,null,null,null,null,null,null,null,null,null,null,null,null,null,null,null,null,null,null,null,null,null,null,null,null,null,null,null,null,null,null,null,null,null,"(дата)",null,null,null,null,null,null,"(Подпись)",null,null,null,null,null,null,null,null,null,null,null,null,null,null,null,null,null,null,null,null,null,null,null,null,null,null,null,null,null,null,null,null,null,null,null,null,null,null,null,null,null,null,"(дата)",null,null,null,null,null,null,"(Подпись)",null,null,null,null,null,null,null,null,null,null,null,null,null,null,null,null,null,null,null,null,null,null,null,null,null,null,null,null,null,null,null,null,null,null,null,null,null,null,null,null,null,null,"(дата)",null,null,null,null,null,null,"(Подпись)",null,null,null,null,null,null,null,null,null,null,null,null,null,null,null,null,null,null,null,null,null,null,null,null,null,null,null,null,null,null,null,null,null,null,null,null,null,null,null,null,null,null,"(дата)",null,null,null,null,null,null,"(Подпись)"]
[]
[]
["Виза руководителя структурного подразделения:",null,null,null,null,null,null,null,null,null,null,null,null,null,null,null,null,null,null,null,null,null,null,null,null,null,null,null,null,null,null,null,null,null,null,null,null,null,null,null,null,null,null,null,null,null,null,null,null,null,"Виза руководителя структурного подразделения:",null,null,null,null,null,null,null,null,null,null,null,null,null,null,null,null,null,null,null,null,null,null,null,null,null,null,null,null,null,null,null,null,null,null,null,null,null,null,null,null,null,null,null,null,null,null,null,null,null,"Виза руководителя структурного подразделения:",null,null,null,null,null,null,null,null,null,null,null,null,null,null,null,null,null,null,null,null,null,null,null,null,null,null,null,null,null,null,null,null,null,null,null,null,null,null,null,null,null,null,null,null,null,null,null,null,null,"Виза руководителя структурного подразделения:",null,null,null,null,null,null,null,null,null,null,null,null,null,null,null,null,null,null,null,null,null,null,null,null,null,null,null,null,null,null,null,null,null,null,null,null,null,null,null,null,null,null,null,null,null,null,null,null,null,"Виза руководителя структурного подразделения:",null,null,null,null,null,null,null,null,null,null,null,null,null,null,null,null,null,null,null,null,null,null,null,null,null,null,null,null,null,null,null,null,null,null,null,null,null,null,null,null,null,null,null,null,null,null,null,null,null,"Виза руководителя структурного подразделения:",null,null,null,null,null,null,null,null,null,null,null,null,null,null,null,null,null,null,null,null,null,null,null,null,null,null,null,null,null,null,null,null,null,null,null,null,null,null,null,null,null,null,null,null,null,null,null,null,null,"Виза руководителя структурного подразделения:"]
[]
[{"$f":"IF(Q$31=Настройки!$C$2,Настройки!$C$36,IF(Q$31=Настройки!$C$3,Настройки!$C$36,IF(Q$31=Настройки!$C$4,Настройки!$C$36,IF(Q$31=Настройки!$C$5,Настройки!$C$36,IF(Q$31=Настройки!$C$6,Настройки!$C$36,Настройки!$C$37)))))","v":"__________ Начальник 1"},null,null,null,null,null,null,null,null,null,null,null,null,null,null,null,null,null,null,null,null,null,null,null,null,null,null,null,null,null,null,null,null,null,null,null,null,null,null,null,null,null,null,null,null,null,null,null,null,null,{"$f":"IF(BO$31=Настройки!$C$2,Настройки!$C$36,IF(BO$31=Настройки!$C$3,Настройки!$C$36,IF(BO$31=Настройки!$C$4,Настройки!$C$36,IF(BO$31=Настройки!$C$5,Настройки!$C$36,IF(BO$31=Настройки!$C$6,Настройки!$C$36,Настройки!$C$37)))))","v":"__________ Начальник 1"},null,null,null,null,null,null,null,null,null,null,null,null,null,null,null,null,null,null,null,null,null,null,null,null,null,null,null,null,null,null,null,null,null,null,null,null,null,null,null,null,null,null,null,null,null,null,null,null,null,{"$f":"IF(DM$31=Настройки!$C$2,Настройки!$C$36,IF(DM$31=Настройки!$C$3,Настройки!$C$36,IF(DM$31=Настройки!$C$4,Настройки!$C$36,IF(DM$31=Настройки!$C$5,Настройки!$C$36,IF(DM$31=Настройки!$C$6,Настройки!$C$36,Настройки!$C$37)))))","v":"__________ Начальник 1"},null,null,null,null,null,null,null,null,null,null,null,null,null,null,null,null,null,null,null,null,null,null,null,null,null,null,null,null,null,null,null,null,null,null,null,null,null,null,null,null,null,null,null,null,null,null,null,null,null,{"$f":"IF(FK$31=Настройки!$C$2,Настройки!$C$36,IF(FK$31=Настройки!$C$3,Настройки!$C$36,IF(FK$31=Настройки!$C$4,Настройки!$C$36,IF(FK$31=Настройки!$C$5,Настройки!$C$36,IF(FK$31=Настройки!$C$6,Настройки!$C$36,Настройки!$C$37)))))","v":"__________ Начальник 1"},null,null,null,null,null,null,null,null,null,null,null,null,null,null,null,null,null,null,null,null,null,null,null,null,null,null,null,null,null,null,null,null,null,null,null,null,null,null,null,null,null,null,null,null,null,null,null,null,null,{"$f":"IF(HI$31=Настройки!$C$2,Настройки!$C$36,IF(HI$31=Настройки!$C$3,Настройки!$C$36,IF(HI$31=Настройки!$C$4,Настройки!$C$36,IF(HI$31=Настройки!$C$5,Настройки!$C$36,IF(HI$31=Настройки!$C$6,Настройки!$C$36,Настройки!$C$37)))))","v":"__________ Начальник 1"},null,null,null,null,null,null,null,null,null,null,null,null,null,null,null,null,null,null,null,null,null,null,null,null,null,null,null,null,null,null,null,null,null,null,null,null,null,null,null,null,null,null,null,null,null,null,null,null,null,{"$f":"IF(JG$31=Настройки!$C$2,Настройки!$C$36,IF(JG$31=Настройки!$C$3,Настройки!$C$36,IF(JG$31=Настройки!$C$4,Настройки!$C$36,IF(JG$31=Настройки!$C$5,Настройки!$C$36,IF(JG$31=Настройки!$C$6,Настройки!$C$36,Настройки!$C$37)))))","v":"__________ Начальник 2"},null,null,null,null,null,null,null,null,null,null,null,null,null,null,null,null,null,null,null,null,null,null,null,null,null,null,null,null,null,null,null,null,null,null,null,null,null,null,null,null,null,null,null,null,null,null,null,null,null,{"$f":"IF(LE$31=Настройки!$C$2,Настройки!$C$36,IF(LE$31=Настройки!$C$3,Настройки!$C$36,IF(LE$31=Настройки!$C$4,Настройки!$C$36,IF(LE$31=Настройки!$C$5,Настройки!$C$36,IF(LE$31=Настройки!$C$6,Настройки!$C$36,Настройки!$C$37)))))","v":"__________ Начальник 2"}]
["  (Подпись)",null,null,null,null,null,null,null,null,null,null,null,null,null,null,null,null,null,null,null,null,null,null,null,null,null,null,null,null,null,null,null,null,null,null,null,null,null,null,null,null,null,null,null,null,null,null,null,null,null,"  (Подпись)",null,null,null,null,null,null,null,null,null,null,null,null,null,null,null,null,null,null,null,null,null,null,null,null,null,null,null,null,null,null,null,null,null,null,null,null,null,null,null,null,null,null,null,null,null,null,null,null,null,"  (Подпись)",null,null,null,null,null,null,null,null,null,null,null,null,null,null,null,null,null,null,null,null,null,null,null,null,null,null,null,null,null,null,null,null,null,null,null,null,null,null,null,null,null,null,null,null,null,null,null,null,null,"  (Подпись)",null,null,null,null,null,null,null,null,null,null,null,null,null,null,null,null,null,null,null,null,null,null,null,null,null,null,null,null,null,null,null,null,null,null,null,null,null,null,null,null,null,null,null,null,null,null,null,null,null,"  (Подпись)",null,null,null,null,null,null,null,null,null,null,null,null,null,null,null,null,null,null,null,null,null,null,null,null,null,null,null,null,null,null,null,null,null,null,null,null,null,null,null,null,null,null,null,null,null,null,null,null,null,"  (Подпись)",null,null,null,null,null,null,null,null,null,null,null,null,null,null,null,null,null,null,null,null,null,null,null,null,null,null,null,null,null,null,null,null,null,null,null,null,null,null,null,null,null,null,null,null,null,null,null,null,null,"  (Подпись)"]

{"sheet":"Настройки","index":2,"n_rows":44,"n_cols":12,"rows_kept":44,"cut":false,"hidden":false,"merged":[]}
["Список работников (в род.падеже) ",null,null,null,null,null,null,null,"Список РЭС ВЭС","день","месяц","год"]
["Из","Из В.В.","Ве","от Ве","Вед.",null,"1.","с.Б","БРЭС","01.","01.",2019]
["Ла","Ла И.В","Ин","от Ин","Ин",null,"2.","с.Е","БЕСУ","02.","02.",2020]
["Ор","Ор П.А","Эл.","от Эл","Эл",null,"3.","с.Х","БЕСУХ","03.","03.",2021]
["Пл","ПлЭ.Р","Ру","от Ру","Ру",null,"4.","с.Ж","Ж","04.","04.",2022]
["Со","Со С.В","Ин","от Ин","Ин",null,"5.","с.К","К","05.","05.",2023]
[null,null,null,null,null,null,"6.","с.О","О","06.","06.",2024]
["Кр","КрВ.Н","Водитель Кр В.Н","от водителя Кр В.Н","Водитель",null,"7.","с.А","ОА","07.","07.",2025]
["Ба","БаС.В.","Водитель БаС.В.","от водителя Ба С.В.",null,null,null,"с.У","У","08.","08.",2026]
["Ег","Ег А.В.","Водитель Ег А.В.","от водителя Ег А.В.",null,null,null,"с.Э","Э","09.","09.",2027]
["Зв","Зв В.Д.","Водитель ЗвВ.Д.","от водителя Зв В.Д.",null,null,null,null,null,"10.","10.",2028]
["По","ПоА.А.","Водитель ПоА.А.","от водителя По А.А.",null,null,null,null,null,"11.","11.",2029]
["Фе","ФеА.В.","Водитель Фе А.В.","от водителя Фе А.В.",null,null,null,null,2,"12.","12.",2030]
["Че","ЧеА.Ю.","Водитель Че А.Ю.","от водителя Че А.Ю.",null,null,null,null,3,"13."]
["Пр","ПрА.Н.","Водитель Пр А.Н.","от водителя Пр А.Н.",null,null,null,null,4,"14."]
["Бу","Бу А.С.","Водитель Бу А.С.","от водителя Бу А.С.",null,null,null,null,5,"15."]
["По","ПоВ.И.","Водитель По В.И.","от водителя По В.И.",null,null,null,null,"Список Авто","16."]
["Жд","Жд.Р.","Водитель Жд О.Р.","от водителя Жд О.Р.",null,null,null,"УАЗ 2",333,"17."]
["Кр","Кр В.И.","Водитель Кр В.И.","от водителя Кр В.И.",null,null,null,null,null,"18."]
["Ши","Ши В.А.","Водитель Ши В.А.","от водителя Ши В.А.",null,null,null,null,null,"19."]
[null,null,null,null,null,null,null,null,null,"20."]
[null,null,null,null,null,null,null,null,null,"21."]
[null,null,null,null,null,null,null,null,null,"22."]
[null,null,null,1,1,null,null,null,null,"23."]
[null,null,{"$f":"IF(E$24=Настройки!$C$2,Настройки!$E$2,IF(E$24=Настройки!$C$3,Настройки!$E$3,IF(E$24=Настройки!$C$4,Настройки!$E$4,IF(E$24=Настройки!$C$5,Настройки!$E$5,IF(E$24=Настройки!$C$6,Настройки!$E$6,Настройки!$E$8)))))","v":"Водитель"},null,2,null,null,null,null,"24."]
[null,null,null,null,3,null,null,null,null,"25."]
[null,null,null,null,4,null,null,null,null,"26."]
[null,null,null,null,5,null,null,null,null,"27."]
[null,null,null,null,null,null,null,null,null,"28."]
[null,null,null,null,null,null,null,null,null,"29."]
[null,null,null,null,null,null,null,null,null,"30."]
[null,null,null,null,null,null,null,null,null,"31."]
["Прошу выдать денежные средства на командировочные расходы  на срок \n",{"$f":"'Служебная записка'!AJ27","v":2},", в сумме ",{"$f":"'Служебная записка'!AJ27*500","v":1000}," руб."," на мою зарплатную карту."]
[{"$f":"CONCATENATE(A33,\" \",B33,C33,D33,E33,F33)","v":"Прошу выдать денежные средства на командировочные расходы  на срок \n 2, в сумме 1000 руб. на мою зарплатную карту."}]
[]
["Согласовано в сумме",null,"__________ Начальник 1"]
[null,null,"__________ Начальник 2"]
[]
[]
[]
[null,"Для проезда к месту командировки и обратно я использовал служебный"]
[]
["Таким образом, продолжительность поездки составила","календарных"]
[" Сообщаю, что с","по","я находился в служебной командировке в"]